bitfinex/quotes_ETHUSD_20250616
["timestamp","ask_amount","ask_price","bid_price","bid_amount"]
[1750101544807,0.37843219,2652.8,2652.6,0.7855]
[1750101544964,0.37843219,2652.8,2652.6,4.55534784]
[1750101545169,0.04712003,2653.2,2652.7,3.76974403]
[1750101545170,0.04712004,2653.0,2652.7,3.76974403]
[1750101545378,0.36169609,2653.0,2652.6,0.7855]
[1750101545776,0.73937405,2653.0,2652.7,3.76973871]
[1750101545984,0.36169609,2653.0,2652.7,3.76974403]
[1750101546187,0.31457605,2653.0,2652.8,3.76952427]
[1750101546370,0.31457605,2653.0,2652.9,3.76945983]
[1750101546708,0.31457605,2653.0,2652.8,3.76952039]
[1750101547897,0.04712146,2653.2,2652.8,3.76952039]
[1750101548095,10.0,2653.1,2652.8,3.76952039]
[1750101548269,0.04712068,2653.0,2652.8,3.76952039]
[1750101548469,10.0,2653.1,2652.9,3.76941394]
[1750101548812,10.0,2653.1,2652.8,3.76952671]
[1750101549169,10.55,2653.4,2653.0,3.76923806]
[1750101549370,0.04711751,2653.3,2653.0,3.76923806]
[1750101549679,0.04711751,2653.3,2652.9,3.76941639]
[1750101550187,0.04711751,2653.3,2653.0,3.76930737]
[1750101551199,0.04711751,2653.3,2652.9,3.76939701]
[1750101551591,0.04711751,2653.3,2653.0,3.76931201]
[1750101551795,0.04711751,2653.3,2652.9,3.7693775]
[1750101552006,3.8160114,2653.3,2652.8,3.76952895]
[1750101552314,3.8160114,2653.3,2652.9,3.76942584]
[1750101552611,0.42092389,2653.3,2652.9,3.76942584]
[1750101553185,4.18984168,2653.3,2652.8,3.7695201]
[1750101553779,0.42092389,2653.3,2653.0,3.7692419]
[1750101555438,10.7290547,2653.7,2653.3,3.76881086]
[1750101555439,0.7619,2653.7,2653.3,3.76881086]
[1750101555628,0.04711231,2653.6,2653.0,6.307]
[1750101555816,0.04711231,2653.6,2653.1,0.7664]
[1750101556014,0.04711231,2653.6,2653.4,3.7687298]
[1750101556237,1.17830252,2653.7,2653.4,3.76874952]
[1750101556440,2.72794345,2653.7,2653.4,3.76868333]
[1750101556639,0.41640252,2653.7,2653.5,3.76859106]
[1750101556841,0.41640252,2653.7,2653.3,3.76887156]
[1750101557012,0.8083,2653.9,2653.5,3.76860404]
[1750101557209,0.04710792,2653.8,2653.6,3.76838968]
[1750101557811,0.04710792,2653.8,2653.5,3.76849558]
[1750101558025,0.04710792,2653.8,2653.6,3.7684452]
[1750101558225,0.04710792,2653.8,2653.6,3.76839192]
[1750101558421,3.76838222,2653.7,2653.2,3.76896511]
[1750101558639,0.04711035,2653.6,2653.3,7.987]
[1750101559047,0.04711035,2653.6,2652.8,3.76954215]
[1750101559048,3.76882475,2653.4,2652.9,3.7693697]
[1750101559210,10.04711686,2653.3,2652.9,3.7693697]
[1750101559410,10.0,2653.3,2652.9,3.7693697]
[1750101559616,13.76891804,2653.3,2652.9,3.76945613]
[1750101559844,13.76879922,2653.4,2652.9,3.76945613]
[1750101560019,2.95396644,2653.3,2652.9,3.76945613]
[1750101560220,6.72291956,2653.3,2652.8,10.0845361]
[1750101560924,0.55,2653.2,2652.7,0.7612]
[1750101561129,3.8163038,2653.1,2652.7,3.76970794]
[1750101561445,0.04712158,2653.1,2652.7,3.76970794]
[1750101561649,1.09632386,2653.1,2652.7,3.76970794]
[1750101561853,0.7779,2653.0,2652.1,4.59174817]
[1750101562011,0.04712373,2652.9,2652.3,6.31]
[1750101562215,0.04712373,2652.9,2652.8,3.76960193]
[1750101563035,0.7779,2653.0,2652.7,3.76967148]
[1750101563240,0.04712269,2652.9,2652.7,3.76967148]
[1750101563954,0.04712268,2653.0,2652.8,3.76952121]
[1750101564154,10.0,2653.2,2653.0,3.7692055]
[1750101564747,10.0,2653.2,2653.0,3.7692481]
[1750101565055,3.76803948,2653.9,2653.0,1.684]
[1750101565216,10.0,2653.5,2652.9,7.153]
[1750101565415,3.81587029,2653.4,2652.9,10.92234676]
[1750101566151,0.04711598,2653.4,2653.1,3.76916171]
[1750101566355,1.50699004,2653.4,2653.1,3.76916171]
[1750101568758,1.50699004,2653.4,2652.9,10.92240583]
[1750101568759,5.27578462,2653.4,2652.9,10.92240583]
[1750101569055,5.27578462,2653.4,2652.8,10.0905842]
[1750101569056,3.76899742,2653.3,2652.8,10.0905842]
[1750101569256,10.04711806,2653.2,2652.8,10.0905842]
[1750101569471,11.61780252,2653.2,2652.8,10.0905842]
[1750101569839,5.3868401,2653.2,2652.8,6.321]
[1750101570176,5.43402558,2653.2,2652.8,6.321]
[1750101570391,10.0,2653.0,2652.8,6.321]
[1750101570593,0.04712005,2652.9,2652.8,6.321]
[1750101571471,0.04712005,2653.0,2652.8,6.321]
[1750101571669,1.59051844,2653.0,2652.8,6.321]
[1750101572638,1.59051844,2653.0,2652.7,3.76966348]
[1750101572833,0.04712005,2653.0,2652.8,6.315]
[1750101573273,10.04712005,2653.0,2652.8,10.08453746]
[1750101573449,10.0,2653.1,2652.8,6.315]
[1750101573651,0.04712005,2653.0,2652.8,6.315]
[1750101574957,2.56786061,2653.2,2652.8,6.315]
[1750101575161,0.04712005,2653.2,2653.0,3.76924114]
[1750101575346,11.45987406,2653.4,2653.1,3.76914232]
[1750101575347,0.04711721,2653.3,2653.1,3.76914232]
[1750101576074,0.90293804,2653.6,2653.0,0.7942]
[1750101576278,0.04711183,2653.5,2653.1,3.76911188]
[1750101576937,0.04711183,2653.5,2653.2,3.76901695]
[1750101577139,10.42867668,2653.5,2653.2,3.76901695]
[1750101579346,10.0,2653.4,2652.9,1.693]
[1750101579568,10.0,2653.2,2652.8,10.07348573]
[1750101579773,0.04711608,2653.1,2652.8,3.76948573]
[1750101579971,0.04711608,2653.1,2652.9,6.304]
[1750101580282,10.0,2653.2,2652.9,10.07338304]
[1750101580478,10.0,2653.2,2653.0,3.7692531]
[1750101580978,10.0,2653.2,2652.9,10.07340627]
[1750101581183,0.0471161,2653.1,2652.9,10.07340627]
[1750101581585,0.9027548,2653.4,2653.0,3.76930513]
[1750101581759,10.0471161,2653.3,2653.0,3.76930513]
[1750101581964,10.0,2653.3,2652.9,10.07338577]
[1750101582172,0.0471161,2653.2,2653.1,3.76917568]
[1750101582373,1.54363263,2653.4,2653.1,1.693]
[1750101582551,0.04711535,2653.3,2653.2,6.3]
[1750101582747,1.5907471,2653.4,2653.2,6.3]
[1750101582965,1.5907471,2653.4,2653.2,10.06901939]
[1750101583180,1.5907471,2653.4,2653.2,6.3]
[1750101584496,1.5907471,2653.4,2653.2,10.06895368]
[1750101584704,0.04711447,2653.4,2653.2,10.06895368]
[1750101584899,0.04711428,2653.5,2653.3,3.76880999]
[1750101585113,10.0,2653.6,2653.3,3.76880999]
[1750101585567,12.36033695,2653.7,2653.3,3.76880999]
[1750101585761,12.36033695,2653.7,2653.2,10.88481433]
[1750101585762,3.8155956,2653.6,2653.2,6.3]
[1750101585989,1.99442597,2653.5,2653.2,6.3]
[1750101586183,0.04711253,2653.4,2653.2,10.06901149]
[1750101586384,10.04711253,2653.5,2653.2,10.06901605]
[1750101586583,10.0,2653.6,2653.2,10.06901605]
[1750101586908,0.04711253,2653.5,2653.2,10.06901605]
[1750101587403,0.04711253,2653.5,2653.2,6.3]
[1750101587899,1.503714,2653.5,2653.2,10.0689684]
[1750101588075,5.27245513,2653.5,2653.2,6.3]
[1750101588257,3.768774,2653.4,2653.0,4.6012731]
[1750101588459,0.04711252,2653.3,2653.1,11.7510823]
[1750101588772,0.04711252,2653.3,2653.1,1.693]
[1750101588972,0.95123807,2653.3,2653.2,6.29]
[1750101589177,10.95123807,2653.3,2653.0,3.76931733]
[1750101589536,0.7866,2653.2,2653.1,7.982]
[1750101590415,14.55563361,2653.2,2653.1,7.982]
[1750101590624,3.76940337,2653.0,2652.8,7.965]
[1750101590920,10.04712137,2652.9,2652.8,7.965]
[1750101591065,10.0,2652.9,2652.8,7.965]
[1750101591260,3.76945983,2652.9,2652.8,15.946]
[1750101591465,0.04712136,2652.9,2652.8,15.946]
[1750101591666,2.05055743,2652.9,2652.8,15.946]
[1750101592603,0.04712136,2652.9,2652.8,15.946]
[1750101592806,0.04712135,2653.0,2652.8,15.946]
[1750101594428,13.81649343,2653.0,2652.9,6.284]
[1750101594594,10.0,2653.0,2652.9,6.284]
[1750101594796,11.45558292,2653.0,2652.9,6.284]
[1750101595914,11.2790547,2653.5,2653.0,3.76919195]
[1750101595915,0.8264,2653.5,2653.0,3.76919195]
[1750101596087,0.8264,2653.5,2653.2,3.76896483]
[1750101596088,0.04711471,2653.4,2653.2,3.76896483]
[1750101596291,0.04711471,2653.4,2653.1,6.283]
[1750101596492,0.04711471,2653.4,2653.2,3.76902154]
[1750101597224,0.04711471,2653.4,2653.3,7.976]
[1750101597586,1.51131466,2653.4,2653.3,1.693]
[1750101597790,15.28006418,2653.4,2653.3,7.976]
[1750101598094,15.23294947,2653.4,2653.3,7.976]
[1750101598313,3.76909693,2653.2,2652.9,1.693]
[1750101598517,10.80091922,2653.1,2653.0,6.283]
[1750101598713,0.75379885,2653.1,2653.0,6.283]
[1750101598917,0.90273338,2653.4,2653.2,3.76897181]
[1750101599212,3.76847198,2653.6,2653.3,6.283]
[1750101599411,13.76868294,2653.5,2653.4,6.283]
[1750101599622,13.76868294,2653.5,2652.8,11.73450506]
[1750101599623,0.55,2653.4,2652.8,7.965]
[1750101599830,8.15017731,2653.2,2653.0,1.67]
[1750101600038,10.8264,2653.3,2653.0,1.67]
[1750101600213,0.90273338,2653.4,2653.0,5.43925572]
[1750101600214,10.0,2653.4,2653.0,5.43925572]
[1750101600422,13.76877474,2653.4,2653.0,1.67]
[1750101600694,3.76899682,2653.3,2653.0,1.67]
[1750101600937,4.5957856,2653.0,2652.8,7.965]
[1750101601241,0.8264,2653.0,2652.9,7.954]
[1750101601537,14.59571775,2653.0,2652.9,7.954]
[1750101601738,10.0,2652.9,2652.8,9.635]
[1750101601948,0.55,2652.8,2652.4,3.77010878]
[1750101602111,21.91985113,2652.8,2652.5,6.283]
[1750101602496,18.15017731,2652.8,2652.5,6.283]
[1750101602702,21.9197825,2652.8,2652.5,6.283]
[1750101603141,3.76975019,2652.7,2652.6,6.283]
[1750101603437,0.04712545,2652.7,2652.6,6.283]
[1750101604249,10.0,2652.8,2652.6,10.05288614]
[1750101604444,0.04712411,2652.7,2652.6,10.05288614]
[1750101604630,10.0,2652.8,2652.7,3.76974403]
[1750101604831,11.68872079,2653.5,2652.7,0.7701]
[1750101605040,12.3528635,2653.4,2653.0,3.76923629]
[1750101605210,16.97703912,2653.4,2653.1,7.954]
[1750101605408,0.90252079,2653.3,2653.1,7.954]
[1750101605630,0.04711637,2653.2,2653.1,7.954]
[1750101606753,0.04711637,2653.2,2653.1,11.72317568]
[1750101606957,0.04711637,2653.2,2653.1,7.954]
[1750101607452,0.04711636,2653.3,2653.1,7.954]
[1750101607761,10.0,2653.2,2653.1,7.954]
[1750101608070,1.78103473,2653.3,2653.1,7.954]
[1750101608339,1.82815109,2653.3,2653.1,7.954]
[1750101609147,1.82815109,2653.3,2653.1,11.72312195]
[1750101609308,0.04711636,2653.3,2653.1,7.954]
[1750101610323,0.04711636,2653.3,2653.1,11.72317008]
[1750101610746,0.04711636,2653.3,2653.1,7.954]
[1750101611259,0.04711636,2653.3,2653.1,11.72317209]
[1750101611454,10.04711536,2653.4,2653.1,7.954]
[1750101611661,5.75107772,2653.4,2653.1,7.954]
[1750101611859,6.70084438,2653.4,2653.1,7.954]
[1750101612164,2.93208154,2653.4,2653.1,7.954]
[1750101612714,2.93208154,2653.4,2653.1,11.72315063]
[1750101613616,2.93208154,2653.4,2653.1,7.954]
[1750101613928,1.74869709,2653.3,2653.1,7.954]
[1750101614127,0.04711534,2653.2,2653.1,7.954]
[1750101614450,0.04711534,2653.2,2653.1,11.72317568]
[1750101614915,0.04711533,2653.4,2653.1,11.72317568]
[1750101615110,0.04711533,2653.4,2653.1,7.954]
[1750101615348,1.65258046,2653.4,2653.1,7.954]
[1750101615847,0.55,2653.3,2653.2,6.283]
[1750101616055,5.22161204,2653.3,2653.2,6.283]
[1750101616529,1.45265131,2653.3,2653.2,6.283]
[1750101616728,4.66863917,2653.3,2653.2,6.283]
[1750101616943,3.76598786,2653.3,2653.2,6.283]
[1750101617247,4.71575564,2653.3,2653.2,6.283]
[1750101618855,3.81310433,2653.3,2653.2,6.283]
[1750101620062,0.90265131,2653.4,2653.3,3.76889156]
[1750101620217,4.22933372,2654.4,2653.3,3.76889156]
[1750101620218,0.90322245,2654.3,2653.4,0.7953]
[1750101620417,0.36167621,2654.2,2654.1,3.76775554]
[1750101620623,0.31457605,2654.2,2654.1,11.72075554]
[1750101620820,0.0470985,2654.3,2654.1,11.72075554]
[1750101621866,0.04709823,2654.4,2654.2,3.76759617]
[1750101622034,0.04709823,2654.4,2654.1,11.72065128]
[1750101622230,0.04709823,2654.4,2654.1,7.953]
[1750101622434,0.90166501,2654.6,2654.4,3.76732971]
[1750101622649,0.02,2654.9,2654.5,6.283]
[1750101622822,0.02,2654.9,2654.8,4.56206209]
[1750101623022,0.02,2654.9,2654.8,12.51406209]
[1750101625267,0.02,2654.9,2654.8,8.7473]
[1750101625426,10.7766,2654.9,2654.3,3.76739822]
[1750101625631,0.04709137,2654.8,2654.5,3.76708471]
[1750101625833,0.04709137,2654.8,2654.6,6.282]
[1750101628238,0.04709137,2654.8,2654.6,10.04898301]
[1750101628587,0.02,2654.9,2654.6,6.282]
[1750101628779,0.0670887,2654.9,2654.6,10.04895808]
[1750101629076,0.02,2654.9,2654.7,4.53915992]
[1750101629385,0.02,2654.9,2654.7,0.7723]
[1750101629566,0.02,2654.9,2654.8,7.949]
[1750101630508,0.02,2654.9,2654.8,11.71576209]
[1750101631569,0.02,2654.9,2654.8,7.949]
[1750101631776,0.0670846,2654.9,2654.8,7.949]
[1750101631971,0.02,2654.9,2654.8,7.949]
[1750101632782,0.02,2654.9,2654.8,11.71576209]
[1750101634706,0.02,2654.9,2654.8,12.51106209]
[1750101640794,0.02,2654.9,2654.8,20.09597639]
[1750101642817,0.02,2654.9,2654.8,37.93431805]
[1750101645111,0.02,2655.9,2655.8,4.53984377]
[1750101645314,0.02,2655.9,2655.8,12.48484377]
[1750101655411,0.02,2655.9,2655.8,4.53984377]
[1750101655709,0.02,2655.9,2655.8,11.70734377]
[1750101659526,0.02,2655.9,2655.8,11.70434377]
[1750101660464,0.02,2655.9,2655.8,23.27659973]
[1750101661174,0.02,2655.9,2655.8,12.52334377]
[1750101661537,0.02,2655.9,2655.8,6.25034377]
[1750101661732,0.02,2655.9,2655.8,12.52334377]
[1750101663176,0.02,2655.9,2655.8,4.58434377]
[1750101663336,0.02,2655.9,2655.8,12.52234377]
[1750101663533,0.02,2655.9,2655.8,4.58434377]
[1750101663773,0.02,2655.9,2655.8,5.43134377]
[1750101664177,0.02,2655.9,2655.8,7.938]
[1750101664338,0.02,2655.9,2655.8,11.70334377]
[1750101664539,0.02,2655.9,2655.8,1.666]
[1750101665252,0.02,2655.9,2655.7,7.958]
[1750101665579,0.02,2655.9,2655.8,1.666]
[1750101665764,3.785202,2655.9,2655.8,1.666]
[1750101665970,0.02,2655.9,2655.8,7.937]
[1750101666277,0.02,2655.9,2655.8,1.666]
[1750101666479,0.02,2655.9,2655.8,7.937]
[1750101666837,0.0670658,2655.9,2655.8,7.937]
[1750101667035,11.02670658,2655.9,2655.2,0.7994]
[1750101667237,0.7547,2655.7,2655.4,3.76590162]
[1750101667442,0.7547,2655.7,2655.5,6.271]
[1750101667650,0.7547,2655.7,2655.6,6.271]
[1750101668597,0.02,2655.9,2655.8,3.76534377]
[1750101668794,0.02,2655.9,2655.8,6.271]
[1750101670372,0.7875,2655.7,2655.3,5.43197572]
[1750101670591,0.7875,2655.7,2655.4,10.036843]
[1750101672427,10.04707089,2655.6,2655.2,1.666]
[1750101672569,10.0,2655.5,2655.3,6.271]
[1750101672765,10.75325596,2656.1,2655.3,6.271]
[1750101672766,1.49643195,2656.7,2656.0,3.76506024]
[1750101672967,5.23616209,2657.4,2655.9,0.7899]
[1750101672968,1.50097091,2658.2,2656.8,3.76392652]
[1750101673307,0.7609,2658.3,2657.8,3.76251034]
[1750101673645,0.8087,2658.7,2657.8,23.3300663]
[1750101674078,0.04702461,2658.6,2657.8,23.3300663]
[1750101674405,0.02,2658.9,2657.8,23.3300663]
[1750101674577,0.27744893,2657.9,2657.8,23.3300663]
[1750101674925,0.02,2657.9,2657.8,17.37623262]
[1750101675104,0.02,2657.9,2657.8,12.95997666]
[1750101675613,0.02,2657.9,2657.8,23.3310663]
[1750101676071,0.02,2657.9,2657.8,23.70608229]
[1750101676618,0.02,2657.9,2657.8,33.70608229]
[1750101676787,0.02,2657.9,2657.8,22.95282633]
[1750101676986,0.02,2657.9,2657.8,22.57781034]
[1750101678102,0.02,2657.9,2657.8,23.50779393]
[1750101679012,0.02,2657.9,2657.8,23.85225334]
[1750101679344,0.02,2657.9,2657.8,5.29925334]
[1750101679491,0.02,2657.9,2657.8,13.30725334]
[1750101679695,0.02,2657.9,2657.8,12.92726975]
[1750101680042,0.02,2657.9,2657.8,12.9274547]
[1750101680241,0.02,2657.9,2657.8,12.92745783]
[1750101680457,0.02,2657.9,2657.8,12.92746635]
[1750101680682,0.02,2657.9,2657.8,12.9274455]
[1750101680825,0.02,2657.9,2657.8,12.9264455]
[1750101682146,0.02,2657.9,2657.8,12.58181034]
[1750101682499,0.02,2657.9,2657.5,7.957]
[1750101682679,0.02,2657.9,2657.8,5.42751034]
[1750101682850,0.02,2657.9,2657.8,5.44637642]
[1750101683427,0.02,2657.9,2657.8,11.78237642]
[1750101683672,0.02,2657.9,2657.8,11.76351034]
[1750101684527,0.02,2657.9,2657.8,5.42751034]
[1750101684774,0.02,2657.9,2657.8,11.78036691]
[1750101684998,0.02,2657.9,2657.8,11.76151034]
[1750101685169,0.02,2657.9,2657.8,22.52291034]
[1750101685524,0.02,2657.9,2657.8,12.52191034]
[1750101687470,0.02,2657.9,2657.8,22.52191034]
[1750101687665,0.02,2657.9,2657.8,4.52391034]
[1750101687971,0.02,2657.9,2657.8,12.52491034]
[1750101689739,0.02,2657.9,2657.5,21.71990988]
[1750101689740,0.02,2657.9,2657.5,7.957]
[1750101689948,0.02,2657.9,2657.8,1.703]
[1750101690467,0.02,2657.9,2657.8,11.79951034]
[1750101690633,0.02,2657.9,2657.8,8.037]
[1750101691270,0.02,2657.9,2657.8,11.79951034]
[1750101691439,0.02,2657.9,2657.8,8.037]
[1750101691846,0.8313,2657.8,2657.5,9.66]
[1750101692066,0.87833473,2657.8,2657.6,6.336]
[1750101692769,0.8313,2657.8,2657.6,10.09872197]
[1750101692969,0.02,2657.9,2657.7,3.76265191]
[1750101693169,0.02,2657.9,2657.8,10.09851034]
[1750101698890,0.02,2657.9,2657.8,14.49566518]
[1750101699196,0.02,2657.9,2657.8,22.52366518]
[1750101699695,0.02,2657.9,2657.8,11.79051034]
[1750101700280,0.02,2657.9,2657.8,5.81012426]
[1750101700481,0.02,2657.9,2657.8,1.703]
[1750101700681,0.02,2657.9,2657.8,8.3754122]
[1750101700883,0.8258,2657.9,2657.8,0.3464122]
[1750101701085,0.8258,2657.9,2657.5,7.957]
[1750101701086,4.58816878,2657.9,2657.7,1.703]
[1750101701281,5.42320466,2657.9,2657.8,6.325]
[1750101701595,5.42320466,2657.9,2657.5,7.957]
[1750101701596,3.76257524,2657.8,2657.6,1.703]
[1750101701896,5.42331359,2657.9,2657.7,6.325]
[1750101702056,3.76251034,2657.8,2657.5,7.957]
[1750101702396,1.66083588,2657.9,2657.5,7.957]
[1750101702397,3.76265191,2657.7,2657.5,7.957]
[1750101702594,3.76265191,2657.7,2657.6,6.323]
[1750101703099,4.68109648,2657.7,2657.6,6.67056599]
[1750101703795,4.31284785,2657.6,2657.2,1.703]
[1750101704104,0.04704292,2657.5,2657.3,6.67124249]
[1750101704313,0.8233,2657.4,2656.5,9.83778731]
[1750101704607,10.0,2657.1,2656.6,6.67436527]
[1750101704762,0.04704927,2657.0,2656.7,0.34736527]
[1750101704962,0.04704927,2657.0,2656.8,6.67636527]
[1750101705288,3.81069247,2657.0,2656.8,6.329]
[1750101705483,3.81069247,2657.0,2656.9,6.329]
[1750101705484,0.04704927,2657.0,2656.9,6.329]
[1750101706007,3.81069247,2657.0,2656.9,6.329]
[1750101706178,0.04704927,2657.0,2656.9,6.329]
[1750101706901,0.8233,2657.4,2656.9,6.329]
[1750101707202,10.87034488,2657.4,2657.0,3.76355987]
[1750101707516,3.76322092,2657.3,2657.1,6.326]
[1750101707667,3.8102649,2657.3,2657.1,6.326]
[1750101707864,16.10476567,2657.4,2657.1,6.326]
[1750101708069,0.8233,2657.4,2657.2,3.76324823]
[1750101708394,14.58644004,2657.4,2657.1,6.326]
[1750101708579,10.0,2657.3,2657.1,8.029]
[1750101708759,10.8233,2657.4,2657.2,6.324]
[1750101708965,0.8233,2657.4,2657.2,6.324]
[1750101709684,0.87034091,2657.4,2657.2,6.324]
[1750101711081,0.8233,2657.4,2657.2,6.324]
[1750101712209,0.8233,2657.4,2657.2,10.08732764]
[1750101712366,0.8233,2657.4,2657.2,6.324]
[1750101712566,0.0470409,2657.5,2657.2,17.05715484]
[1750101712792,1.43351831,2657.7,2657.3,3.76314275]
[1750101713099,1.43351831,2657.7,2657.3,3.76311634]
[1750101713624,1.43351831,2657.7,2657.3,3.76319451]
[1750101713783,1.43351831,2657.7,2657.3,3.76308313]
[1750101713977,1.43351831,2657.7,2657.2,10.0873075]
[1750101714481,1.43351831,2657.7,2657.4,3.7630646]
[1750101714691,1.43351831,2657.7,2657.2,10.0873075]
[1750101714692,1.43351831,2657.7,2657.5,10.07786075]
[1750101715567,1.43351831,2657.7,2657.5,6.315]
[1750101715768,1.43351831,2657.7,2657.6,3.76279349]
[1750101716722,1.43351831,2657.7,2657.6,14.49594833]
[1750101718406,1.43351831,2657.7,2657.3,11.51695484]
[1750101718570,1.43351831,2657.7,2657.6,5.46579349]
[1750101718774,1.43351831,2657.7,2657.6,11.77479349]
[1750101719106,1.43351831,2657.7,2657.6,22.50794833]
[1750101719508,1.43351831,2657.7,2657.6,23.32774833]
[1750101720408,0.02,2657.9,2657.8,3.76251034]
[1750101720772,0.02,2657.9,2657.8,10.07151034]
[1750101722408,0.02,2657.9,2657.8,11.75551034]
[1750101723676,0.02,2657.9,2657.8,11.75451034]
[1750101724792,0.02,2657.9,2657.4,3.76303983]
[1750101724993,0.02,2657.9,2657.6,3.76272294]
[1750101725195,0.02,2657.9,2657.7,3.76263983]
[1750101725397,0.02,2657.9,2657.8,6.305]
[1750101727025,0.02,2657.9,2657.8,6.301]
[1750101727323,3.78236878,2657.9,2657.8,6.301]
[1750101727522,5.61847947,2657.9,2657.8,6.301]
[1750101727685,1.85611069,2657.9,2657.8,6.301]
[1750101728399,0.02,2657.9,2657.8,6.301]
[1750101729692,3.78236878,2657.9,2657.8,6.301]
[1750101729894,3.78236878,2657.9,2657.8,6.294]
[1750101730095,0.02,2657.9,2657.8,10.05651034]
[1750101733530,0.02,2657.9,2657.8,6.296]
[1750101733706,0.02,2657.9,2657.6,3.76278991]
[1750101733914,0.02,2657.9,2657.8,3.76251034]
[1750101734099,0.02,2657.9,2657.7,6.294]
[1750101735615,0.02,2657.9,2657.7,10.05658809]
[1750101735818,0.02,2657.9,2657.7,3.76258809]
[1750101736029,0.02,2657.9,2657.8,6.291]
[1750101736446,0.02,2657.9,2657.8,10.05151034]
[1750101736604,0.02,2657.9,2657.8,6.289]
[1750101737845,3.78244154,2657.9,2657.8,6.288]
[1750101738018,0.02,2657.9,2657.8,6.286]
[1750101739358,0.02,2657.9,2657.8,6.283]
[1750101741723,0.7735,2657.9,2657.8,6.283]
[1750101742419,0.7735,2657.9,2657.8,10.04551034]
[1750101742619,0.02,2657.9,2657.8,6.283]
[1750101743643,0.02,2657.9,2657.6,1.689]
[1750101743811,0.02,2657.9,2657.7,10.03957551]
[1750101744031,0.02,2657.9,2657.8,3.76251034]
[1750101745055,0.02,2657.9,2657.8,4.58098281]
[1750101747171,0.02,2657.9,2657.8,4.56211034]
[1750101748054,0.02,2657.9,2657.6,1.689]
[1750101748230,0.02,2657.9,2657.8,6.277]
[1750101748654,0.02,2657.9,2657.8,10.03951034]
[1750101751747,0.02,2657.9,2657.8,20.77266518]
[1750101751948,0.02,2657.9,2657.8,22.65355473]
[1750101752188,0.02,2657.9,2657.8,4.53151034]
[1750101752363,0.02,2657.9,2657.8,10.80751034]
[1750101754894,0.02,2657.9,2657.8,11.91872621]
[1750101755229,0.02,2657.9,2657.8,10.80751034]
[1750101755378,3.39076295,2658.0,2657.9,3.76236878]
[1750101760567,3.39076295,2658.0,2657.9,11.70736878]
[1750101762530,3.80841324,2658.6,2657.9,12.25736878]
[1750101762531,0.04702462,2658.6,2657.9,12.25736878]
[1750101762688,0.2143326,2660.1,2659.8,3.75968117]
[1750101762869,0.2143326,2660.1,2660.0,13.75939849]
[1750101763070,0.0383454,2660.7,2660.3,3.75891866]
[1750101763266,0.0383454,2660.7,2660.6,13.20302213]
[1750101763494,0.0383454,2660.7,2660.6,19.92938989]
[1750101763710,0.0383454,2660.7,2660.6,20.40037009]
[1750101763882,0.0383454,2660.7,2660.6,31.50331826]
[1750101764409,0.005,2661.3,2661.2,3.75770329]
[1750101764581,0.005,2661.3,2661.2,38.06907145]
[1750101764984,0.005,2661.3,2661.2,41.21980116]
[1750101767479,0.005,2661.3,2661.2,41.76980116]
[1750101767983,0.005,2661.3,2661.2,24.16100329]
[1750101768183,0.005,2661.3,2661.2,41.23580116]
[1750101769510,0.005,2661.3,2661.2,41.23380116]
[1750101770106,0.005,2661.3,2661.2,12.49200329]
[1750101770304,0.005,2661.3,2661.2,19.74270329]
[1750101770488,0.005,2661.3,2661.2,9.618]
[1750101770809,0.005,2661.3,2661.2,7.949]
[1750101771017,0.005,2661.3,2661.2,14.324]
[1750101771310,0.005,2661.3,2661.1,1.669]
[1750101771311,14.94947977,2661.3,2660.9,1.669]
[1750101771520,3.7578445,2661.1,2661.0,6.375]
[1750101772318,3.75800277,2661.0,2660.9,1.668]
[1750101772480,3.75789409,2661.1,2660.9,8.045]
[1750101772677,0.49498118,2661.1,2660.9,8.045]
[1750101772894,3.78591329,2661.2,2660.9,8.045]
[1750101773294,3.75785283,2661.1,2660.9,8.045]
[1750101773915,3.75798571,2661.0,2660.9,8.045]
[1750101774124,3.75798571,2661.0,2660.9,8.038]
[1750101774420,3.75825014,2660.9,2660.7,1.668]
[1750101774605,3.75825014,2660.9,2660.8,6.37]
[1750101775014,3.78620225,2661.0,2660.8,6.37]
[1750101775520,3.75804305,2661.0,2660.8,6.37]
[1750101775720,0.55,2661.1,2660.8,6.37]
[1750101776022,3.758058,2661.0,2660.8,6.37]
[1750101776405,3.75808825,2661.0,2660.8,6.37]
[1750101776579,3.78624745,2661.0,2660.8,6.37]
[1750101776783,3.75812694,2660.9,2660.8,6.37]
[1750101777319,3.75806123,2661.0,2660.8,6.364]
[1750101777493,3.75812694,2660.9,2660.8,6.364]
[1750101778196,3.75812694,2660.9,2660.1,7.943]
[1750101778197,0.9728735,2661.0,2660.1,7.943]
[1750101778511,3.75854549,2660.7,2660.2,11.78510042]
[1750101778817,3.75857016,2660.6,2660.3,8.026]
[1750101779025,0.0281592,2660.7,2660.3,11.78496462]
[1750101779396,3.78659033,2660.7,2660.3,8.026]
[1750101779699,3.78659033,2660.7,2660.3,11.78490733]
[1750101779700,3.78657074,2660.7,2660.3,11.78490733]
[1750101779897,3.78657074,2660.7,2660.3,8.026]
[1750101781324,0.0281592,2660.7,2660.3,11.78488831]
[1750101781626,0.7842,2661.3,2660.4,10.70179787]
[1750101781785,10.0,2661.1,2660.8,3.7582647]
[1750101781987,10.0,2661.1,2660.9,6.35]
[1750101782195,10.0,2661.1,2660.9,8.067]
[1750101782597,3.7578555,2661.1,2660.9,8.067]
[1750101782798,3.7578555,2661.1,2660.7,1.717]
[1750101782799,3.75820254,2660.9,2660.7,1.717]
[1750101783014,3.78620833,2661.0,2660.8,6.352]
[1750101783195,3.75812694,2660.9,2660.8,6.352]
[1750101783403,0.0281592,2661.0,2660.8,6.352]